Cogmind - Beta 11 X10 @@@ ROGUE MODE // 2022.02.10 @ 12:29:11 Player: gammafunk Result: Self-destructed Performance ------------- Evolutions (4) 2000 Regions Visited (11) 2200 Robots Destroyed (173) 865 Value Destroyed (4813) 4813 Prototype IDs (24) 480 Alien Tech Used (0) 0 Bonus (-1453) -1453 TOTAL SCORE: 8905 Bonus ------- High Alert Combat Kills 284 Follower Combat Kills 87 Met Data Miner 300 Friendly Fire -2124 Cogmind --------- Core Integrity 738/850 Matter 300/300 Energy 285/290 System Corruption 0% Temperature Cool (0) Movement Treading (160) Location -6/Factory Parts ------- > --- POWER (1) -------- Improved Deuterium Engine > --- PROPULSION (6) --- Improved Medium Treads Improved Medium Treads Improved Heavy Treads Improved Heavy Treads > --- UTILITY (4) ------ Advanced Heat Sink Huge Storage Unit Experimental Sensor Array Advanced Signal Interpreter > --- WEAPON (4) ------- Flak Gun Flak Gun Heavy Battle Rifle Powered Hammer > --- INVENTORY (25) --- Light Treads Light Treads Improved Treads Medium Treads Medium Treads High-capacity Matter Pod (200) Advanced Sensor Array Improved Signal Interpreter Advanced Terrain Scan Processor Advanced Particle Charger Improved Weapon Shielding Layered Medium Armor Plating Layered Medium Armor Plating Experimental Thermal Shield Hacking Suite System Shield Neutron Cannon Minigun Gauss Rifle Gauss Rifle Heavy Battle Rifle Improved Proton Missile Launcher Heavy Rocket Launcher Remote Datajack Plasma Cutter Peak State ------------ > --- POWER ------------ Antimatter Reactor > --- PROPULSION ------- Improved Medium Treads Improved Medium Treads Improved Heavy Treads Improved Heavy Treads > --- UTILITY ---------- Advanced Heat Sink Huge Storage Unit Experimental Sensor Array Advanced Signal Interpreter > --- WEAPON ----------- Flak Gun Flak Gun Heavy Battle Rifle Heavy Battle Rifle > --- INVENTORY -------- Improved Deuterium Engine Light Treads Light Treads Improved Treads Medium Treads Medium Treads High-capacity Matter Pod Advanced Sensor Array Improved Signal Interpreter Advanced Terrain Scan Processor Advanced Particle Charger Improved Weapon Shielding Layered Medium Armor Plating Layered Medium Armor Plating Experimental Thermal Shield Hacking Suite Neutron Cannon Minigun Gauss Rifle Gauss Rifle Improved Proton Missile Launcher Heavy Rocket Launcher Remote Datajack Plasma Cutter Powered Hammer [Rating: 90] Favorites ----------- Power Improved Deuterium Engine Engine Improved Deuterium Engine Reactor Antimatter Reactor Propulsion Improved Treads Treads Improved Treads Utility Huge Storage Unit Device Experimental Sensor Array Storage Huge Storage Unit Processor Improved Signal Interpreter Hackware System Shield Protection Improved Light Armor Plating Weapon Heavy Assault Rifle Energy Cannon Heavy Ion Cannon Ballistic Gun Heavy Assault Rifle Launcher Improved Grenade Launcher Special Weapon Mining Laser Impact Weapon Powered Hammer Slashing Weapon Axe Build | -11 -10 -10 -9 -9 -8 -7 -7 -7 -7 -6 -6 ------- Run | Scr Mat Min Mat Min Mat Fac Low Low Dat Pro Fac Slots Evolved 8 | . . . 2 . 2 2 . . . . 2 Power . | . . . . . . . . . . . . Propulsion 4 | . . . 1 . 1 1 . . . . 1 Utility 2 | . . . . . 1 . . . . . 1 Weapon 2 | . . . 1 . . 1 . . . . . Parts Attached 184 | 7 17 . 40 1 36 18 2 7 1 16 39 Power 13 | 1 4 . 3 . 2 . . . . 1 2 Engine 11 | 1 4 . 3 . 2 . . . . . 1 Core . | . . . . . . . . . . . . Reactor 2 | . . . . . . . . . . 1 1 Propulsion 34 | 2 5 . 4 . 14 4 . . . . 5 Treads 34 | 2 5 . 4 . 14 4 . . . . 5 Leg . | . . . . . . . . . . . . Wheel . | . . . . . . . . . . . . Hover . | . . . . . . . . . . . . Flight . | . . . . . . . . . . . . Utility 57 | 2 2 . 5 1 6 7 2 1 1 8 22 Device 22 | 1 1 . 1 . . 2 1 1 . 5 10 Storage 6 | 1 1 . . 1 1 1 . . . 1 . Processor 3 | . . . . . . 1 . . . . 2 Hackware 3 | . . . 1 . 1 . . . . . 1 Protection 23 | . . . 3 . 4 3 1 . 1 2 9 Artifact . | . . . . . . . . . . . . Weapon 80 | 2 6 . 28 . 14 7 . 6 . 7 10 Energy Gun . | . . . . . . . . . . . . Energy Cannon 6 | . . . 1 . . 1 . 2 . 1 1 Ballistic Gun 55 | 2 5 . 22 . 12 5 . 2 . 3 4 Ballistic Cannon . | . . . . . . . . . . . . Launcher 4 | . . . . . 1 . . 1 . 2 . Special Weapon 7 | . 1 . 5 . . . . . . 1 . Impact Weapon 7 | . . . . . . 1 . 1 . . 5 Slashing Weapon 1 | . . . . . 1 . . . . . . Piercing Weapon . | . . . . . . . . . . . . Special Melee Weapon . | . . . . . . . . . . . . Unidentified Prototypes 6 | . . . 2 . 1 . . . . 3 . Parts Lost 5 | . 2 . 1 . 1 1 . . . . . Power 2 | . 1 . . . 1 . . . . . . Propulsion 1 | . . . 1 . . . . . . . . Utility 2 | . 1 . . . . 1 . . . . . Weapon . | . . . . . . . . . . . . Highest Loss Streak 2 | . 2 . 1 . 1 1 . . . . . To Critical Strikes . | . . . . . . . . . . . . Average Slot Usage (%) 98 | . 99 100 99 100 99 100 100 100 100 100 93 Engine 8 | . 13 14 11 11 8 7 7 7 7 6 2 Treads 34 | . 27 28 32 33 36 38 38 38 38 38 33 Device 5 | . 13 14 2 . . 3 7 7 7 6 7 Storage 9 | . 14 14 11 11 9 7 7 7 7 7 6 Processor 3 | . . . . . . 3 7 7 7 7 9 Hackware 2 | . . . 4 . 8 3 . . . . . Protection 3 | . . . 4 11 8 3 . . . . 1 Ballistic Gun 28 | . 27 28 31 33 26 28 30 23 23 26 23 Naked Turns . | . . . . . . . . . . . . Heaviest Build 121 | 13 32 32 44 60 67 111 108 111 114 120 121 Greatest Support 210 | 40 46 46 69 69 92 124 124 124 124 124 210 Greatest Overweight (x) 1 | 1 . . . . . . . . . . . Average Overweight (x) . | . . . . . . . . . . . . Largest Inventory Capacity 25 | 8 15 15 15 20 20 25 25 25 25 25 25 Average Capacity 19 | 7 10 15 15 19 20 22 25 25 25 25 25 Most Carried 25 | 5 12 13 15 18 20 23 25 25 25 25 25 Average Carried 18 | 2 8 12 14 17 19 20 24 24 25 24 24 Final Capacity 25 | 8 15 15 15 20 20 25 25 25 25 25 25 Final Carried 25 | 5 12 13 15 18 20 23 25 25 25 25 25 Class Distribution -------------------- 39% | Tank 31% | Mutant 20% | Skirmisher 4% | Scavenger-Gunner Dominant Class ---------------- Mutant | -10/Materials Mutant | -10/Mines Tank | -9/Materials Tank | -9/Mines Tank | -8/Materials Tank | -7/Factory Skirmisher | -7/Lower Caves Mutant | -7/Lower Caves Skirmisher | -7/Data Miner Skirmisher | -6/Proximity Caves Skirmisher | -6/Factory Resources | -11 -10 -10 -9 -9 -8 -7 -7 -7 -7 -6 -6 ----------- Run | Scr Mat Min Mat Min Mat Fac Low Low Dat Pro Fac Matter Collected 5522 | 298 523 58 1181 267 1280 243 60 40 . 293 1279 Remotely . | . . . . . . . . . . . . Salvage Created 6714 | 82 759 99 1556 304 2085 303 . . . 304 1222 Parts 407 | 5 44 8 141 28 111 20 . . . 13 37 Haulers Intercepted 11 | . 1 . 6 . 4 . . . . . . Recyclers Shooed 12 | 1 . . 6 . 4 . . . . . 1 Parts Field Recycled . | . . . . . . . . . . . . Retrieved Matter . | . . . . . . . . . . . . Parts Self-Destructed 5 | . . . . . . . . . . 5 . Prevented . | . . . . . . . . . . . . Kills | -11 -10 -10 -9 -9 -8 -7 -7 -7 -7 -6 -6 ------- Run | Scr Mat Min Mat Min Mat Fac Low Low Dat Pro Fac Combat Hostiles Destroyed 121 | . 15 2 31 14 32 4 . . . 6 17 Guns 112 | . 15 2 31 14 29 4 . . . . 17 AOE 9 | . . . . . 3 . . . . 6 . Classes Destroyed 13 | 2 4 . 4 . 2 1 . . . . . Worker 8 | . . . 3 1 3 1 . . . . . Builder 1 | . . . 1 . . . . . . . . Tunneler 5 | 1 . 1 1 2 . . . . . . . Hauler 11 | . 1 . 6 . 4 . . . . . . Recycler 12 | 1 1 . 1 1 3 1 . . . . 4 Operator 3 | . . . 2 . 1 . . . . . . Watcher 11 | . 3 . 5 . 3 . . . . . . Swarmer 33 | . 3 . 15 12 3 . . . . . . Grunt 61 | . 12 2 8 2 20 2 . . . 6 9 Protector 1 | . . . . . 1 . . . . . . Sentry 17 | . . . 8 . 6 . . . . . 3 Hunter 6 | . . . . . 2 1 . . . . 3 Programmer 3 | . . . . . . 1 . . . . 2 Enhanced Grunt 1 | . . . . . . . . . . 1 . Best Kill Streak 7 | 2 4 1 7 4 5 3 . . . 4 4 Combat Bots Only 7 | . 3 1 7 4 5 2 . . . 4 4 Max Kills in Single Turn 2 | 1 1 1 2 2 2 2 . . . 2 1 Gunslinging 1 | . . . 1 1 . . . . . . . Exploded 2 | . . . . . 2 . . . . 2 . Melee . | . . . . . . . . . . . . Uniques/NPCs Destroyed . | . . . . . . . . . . . . Combat | -11 -10 -10 -9 -9 -8 -7 -7 -7 -7 -6 -6 -------- Run | Scr Mat Min Mat Min Mat Fac Low Low Dat Pro Fac Damage Taken 5572 | . 694 107 1002 386 1319 153 . . . 262 1649 Core 460 | . 126 24 100 19 61 . . . . 18 112 Absorbed by Shields 72 | . . . 72 . . . . . . . . Regen/Repaired (Parts) 764 | . 92 . 134 . 538 . . . . . . Core Remaining (%) 79 | 100 . 40 . 70 88 . . . . 97 . Volleys Fired 491 | 5 89 8 121 22 90 20 . 23 . 72 41 Largest 4 | 2 2 2 3 3 3 4 . 1 . 1 4 Hottest 122 | 40 100 40 100 69 73 106 . 65 . 36 122 Shots Fired 1131 | 10 174 16 319 66 266 38 . 23 . 72 147 Gun 1006 | 10 171 16 309 66 264 24 . . . . 146 Cannon 36 | . . . . . . 14 . 21 . . 1 Launcher 17 | . . . . . 2 . . 2 . 13 . Special 72 | . 3 . 10 . . . . . . 59 . Kinetic 1006 | 10 171 16 309 66 264 24 . . . . 146 Thermal 108 | . 3 . 10 . . 14 . 21 . 59 1 Explosive 17 | . . . . . 2 . . 2 . 13 . Electromagnetic . | . . . . . . . . . . . . Robot Hit Streak 21 | 5 16 4 12 7 21 10 . . . 12 17 Robot Miss Streak 7 | 1 4 2 7 5 5 1 . . . 3 6 Penetration Max 1 | . . . . . . 1 . . . . . Secondary Targets 11 | . . . 6 3 1 . . . . . 1 Max Gunslinging Chain 1 | . . . 1 1 1 . . . . . 1 Shots Hit Robots 712 | 8 117 9 179 36 178 19 . . . 50 116 Core Hits 391 | 3 38 5 80 16 84 11 . . . 32 122 Critical Kills 4 | . . . 1 . 3 . . . . . . Critical Parts Destroyed 5 | 1 . . 2 . . . . . . . 2 Critical Strikes 13 | 1 . . 3 . 3 . . . . 4 2 Destroy 9 | 1 . . 3 . 3 . . . . . 2 Sever 4 | . . . . . . . . . . 4 . Melee Attacks 20 | . . . . . 5 3 . 3 . . 9 Impact 15 | . . . . . . 3 . 3 . . 9 Slashing 5 | . . . . . 5 . . . . . . Piercing . | . . . . . . . . . . . . Sneak Attacks 7 | . . . . . 3 . . . . . 4 Combat Hostiles . | . . . . . . . . . . . . Follow-up Attacks . | . . . . . . . . . . . . Damage Inflicted 12358 | 104 1295 130 2260 704 3464 354 . . . 1425 2622 Guns 9609 | 104 1282 114 2167 580 2887 337 . . . . 2138 Cannons . | . . . . . . . . . . . . Explosions 1309 | . . . . . 201 . . . . 1108 . Melee 796 | . . . . . 342 . . . . . 454 Ramming 327 | . 13 16 93 124 34 17 . . . . 30 Kinetic 9609 | 104 1282 114 2167 580 2887 337 . . . . 2138 Thermal 317 | . . . . . . . . . . 317 . Explosive 1309 | . . . . . 201 . . . . 1108 . Electromagnetic . | . . . . . . . . . . . . Impact 454 | . . . . . . . . . . . 454 Slashing 342 | . . . . . 342 . . . . . . Piercing . | . . . . . . . . . . . . Highest Corruption 2 | . 2 2 . . . . . . . . . Average Corruption 1 | . 1 2 . . . . . . . . . Corruption Purged . | . . . . . . . . . . . . Corruption Blocked . | . . . . . . . . . . . . Effects 13 | . 12 1 . . . . . . . . . Message Errors 5 | . 4 1 . . . . . . . . . Matter Fused 1 | . 1 . . . . . . . . . . Heat Flow Errors 1 | . 1 . . . . . . . . . . Energy Discharges 2 | . 2 . . . . . . . . . . Data Loss (minor) 1 | . 1 . . . . . . . . . . Data Loss (major) 1 | . 1 . . . . . . . . . . Alerts 1 | . 1 . . . . . . . . . . Weapon Failures 1 | . 1 . . . . . . . . . . Overload Shots . | . . . . . . . . . . . . Overflow Damage 319 | . . . . 2 116 . . . . 18 183 Projectiles . | . . . . . . . . . . . . Explosions 18 | . . . . . . . . . . 18 . Melee 301 | . . . . 2 116 . . . . . 183 Knockbacks 5 | . 1 . 1 2 . . . . . . 1 Impact 5 | . 1 . 1 2 . . . . . . 1 Kinetic . | . . . . . . . . . . . . Secondary . | . . . . . . . . . . . . Self-Inflicted Damage . | . . . . . . . . . . . . Shots . | . . . . . . . . . . . . Rammed 42 | . 7 3 10 13 5 1 . . . . 3 Targets Rammed 50 | . 7 4 13 17 5 1 . . . . 3 Kicked . | . . . . . . . . . . . . Crushed 8 | . . 1 3 4 . . . . . . . Highest Temperature 254 | . 169 . 47 36 216 126 . 110 . 67 254 Average Temperature 43 | . 21 . 13 25 51 34 . 39 . 37 96 Received Heat Transfer 1708 | . 348 63 295 36 522 . . . . 111 333 Effects 3 | . . . . . . . . . . . 3 Interference 3 | . . . . . . . . . . . 3 Siege Activations . | . . . . . . . . . . . . Robots Corrupted . | . . . . . . . . . . . . Combat Hostiles . | . . . . . . . . . . . . Parts Fried 5 | . . . . 1 . . . . . . 4 Impact Corruptions 7 | . . . . 1 . . . . . . 6 Robots Melted . | . . . . . . . . . . . . Combat Hostiles . | . . . . . . . . . . . . Parts Melted . | . . . . . . . . . . . . Heat Transferred 1591 | . . . . . . . . . . 1591 . Parts Sabotaged . | . . . . . . . . . . . . Parts Stolen . | . . . . . . . . . . . . Parts Stripped . | . . . . . . . . . . . . Power Chain Reactions . | . . . . . . . . . . . . Missiles Intercepted . | . . . . . . . . . . . . Alert | -11 -10 -10 -9 -9 -8 -7 -7 -7 -7 -6 -6 ------- Run | Scr Mat Min Mat Min Mat Fac Low Low Dat Pro Fac Peak Influence 787 | 10 255 55 468 433 787 298 . . . . 254 Initial 156 | . 6 . 21 103 . 156 . . . . . Average 211 | 3 107 21 264 180 456 143 . . . . 110 Maximum Alert Level 3 | . 1 . 2 2 3 1 . . . . 1 Low Security (%) 51 | 100 89 100 19 45 8 80 . . . . 80 Level 1 36 | . 10 . 65 54 38 19 . . . . 19 Level 2 10 | . . . 14 . 44 . . . . . . Level 3 1 | . . . . . 8 . . . . . . Level 4 . | . . . . . . . . . . . . Level 5 . | . . . . . . . . . . . . High Security . | . . . . . . . . . . . . Max Security . | . . . . . . . . . . . . Squads Dispatched 16 | . 2 . 1 . 4 2 . . . . 7 Investigation 4 | . 1 . . . 1 1 . . . . 1 Extermination 3 | . . . . . . 1 . . . . 2 Reinforcement 5 | . 1 . 1 . 2 . . . . . 1 Assault 1 | . . . . . 1 . . . . . . Garrison 3 | . . . . . . . . . . . 3 Intercept . | . . . . . . . . . . . . Construction Impeded . | . . . . . . . . . . . . Haulers Reinforced 1 | . . . . . . . . . . . 1 Active Scanning Responses . | . . . . . . . . . . . . Cargo Convoy Interrupts . | . . . . . . . . . . . . Stealth | -11 -10 -10 -9 -9 -8 -7 -7 -7 -7 -6 -6 --------- Run | Scr Mat Min Mat Min Mat Fac Low Low Dat Pro Fac Distress Signals 10 | . 3 . 3 . 4 . . . . . . Communications Jammed . | . . . . . . . . . . . . Distress Signals . | . . . . . . . . . . . . Times Spotted 179 | . 30 2 51 14 50 4 . . . 8 20 Peak Tracking Total 9 | . 4 2 6 4 9 2 . . . 4 3 Tactical Retreats 9 | . 2 . 4 . 3 . . . . . . Traps | -11 -10 -10 -9 -9 -8 -7 -7 -7 -7 -6 -6 ------- Run | Scr Mat Min Mat Min Mat Fac Low Low Dat Pro Fac Traps Triggered 9 | . 5 . 1 . 3 . . . . . . Indirectly . | . . . . . . . . . . . . Trap Hack Attempts . | . . . . . . . . . . . . Triggered . | . . . . . . . . . . . . Disarmed . | . . . . . . . . . . . . Reprogrammed . | . . . . . . . . . . . . Reused . | . . . . . . . . . . . . Traps Extracted . | . . . . . . . . . . . . Installed . | . . . . . . . . . . . . Triggered 2 | . . . . . . . . . . 2 . Machines | -11 -10 -10 -9 -9 -8 -7 -7 -7 -7 -6 -6 ---------- Run | Scr Mat Min Mat Min Mat Fac Low Low Dat Pro Fac Machines Disabled 3 | . . . 1 . 1 . . . . . 1 Max in Single Turn 1 | . . . 1 . 1 . . . . . 1 Garrison Access 1 | . . . . . 1 . . . . . . Machines Sabotaged . | . . . . . . . . . . . . Garrisons Compromised . | . . . . . . . . . . . . Overloaded Fab Kills . | . . . . . . . . . . . . Hacking | -11 -10 -10 -9 -9 -8 -7 -7 -7 -7 -6 -6 --------- Run | Scr Mat Min Mat Min Mat Fac Low Low Dat Pro Fac Machines Accessed 44 | . 7 . 13 . 6 6 1 1 4 . 6 Terminals 28 | . 6 . 10 . 4 4 . . . . 4 Fabricators 2 | . . . . . . 1 . . . . 1 Repair Stations 5 | . 1 . 2 . 1 . . . . . 1 Recycling Units . | . . . . . . . . . . . . Scanalyzers 1 | . . . 1 . . . . . . . . Garrison Access 2 | . . . . . 1 1 . . . . . Total Hacks 159 | . 20 . 41 . 33 16 1 1 33 . 14 Successful 103 | . 11 . 23 . 19 7 1 1 33 . 8 Failed 55 | . 8 . 18 . 14 9 . . . . 6 Catastrophic 8 | . 1 . 4 . 1 1 . . . . 1 Database Lockouts 1 | . 1 . . . . . . . . . . Manual 54 | . 10 . 17 . 12 9 . . . . 6 Terminals 92 | . 18 . 32 . 21 12 . . . . 9 Fabricators 6 | . . . . . . 3 . . . . 3 Repair Stations 19 | . 2 . 6 . 9 . . . . . 2 Recycling Units . | . . . . . . . . . . . . Scanalyzers 3 | . . . 3 . . . . . . . . Garrison Access 4 | . . . . . 3 1 . . . . . Terminal Hacks 66 | . 7 . 11 . 7 3 1 1 33 . 3 Record 12 | . . . . . . 1 . . 11 . . Part Schematic 15 | . . . . . 2 . . . 12 . 1 Robot Schematic 7 | . . . . . . . . . 7 . . Robot Analysis 2 | . 2 . . . . . . . . . . Prototype ID Bank 8 | . 2 . 3 . . . . . 3 . . Open Door 2 | . . . . . . . 1 1 . . . Branch Access Points 3 | . . . 1 . . 1 . . . . 1 Terminal Index 1 | . . . 1 . . . . . . . . Fabricator Index 1 | . . . . . . . . . . . 1 Repair Station Index 1 | . . . 1 . . . . . . . . Alert Level 4 | . . . 2 . 1 1 . . . . . Unreport Threat 6 | . 1 . 2 . 3 . . . . . . Locate Traps 3 | . 2 . 1 . . . . . . . . Hauler Manifests 1 | . . . . . 1 . . . . . . Fabricator Hacks 4 | . . . . . . 2 . . . . 2 Load Schematic 2 | . . . . . . 1 . . . . 1 Build 2 | . . . . . . 1 . . . . 1 Repair Station Hacks 17 | . 2 . 5 . 9 . . . . . 1 Scan Component 10 | . 1 . 3 . 5 . . . . . 1 Repair 7 | . 1 . 2 . 4 . . . . . . Recycling Unit Hacks . | . . . . . . . . . . . . Scanalyzer 3 | . . . 3 . . . . . . . . Insert Component 1 | . . . 1 . . . . . . . . Analyze 2 | . . . 2 . . . . . . . . Garrison Access Hacks . | . . . . . . . . . . . . Unauthorized Hacks 13 | . 2 . 4 . 3 2 . . . . 2 Terminals 12 | . 2 . 4 . 2 2 . . . . 2 Assimilate 1 | . . . 1 . . . . . . . . Botnet 11 | . 2 . 3 . 2 2 . . . . 2 Fabricators . | . . . . . . . . . . . . Repair Stations . | . . . . . . . . . . . . Recycling Units . | . . . . . . . . . . . . Scanalyzers . | . . . . . . . . . . . . Garrison Access 1 | . . . . . 1 . . . . . . Jam 1 | . . . . . 1 . . . . . . Data Cores Recovered 2 | . . . 1 . 1 . . . . . . Used . | . . . . . . . . . . . . Hacking Detections 36 | . 7 . 12 . 5 6 . . . . 6 Full Trace Events 2 | . . . . . . 1 . . . . 1 Feedback Events . | . . . . . . . . . . . . Feedback Blocked . | . . . . . . . . . . . . Robot Schematics Acquired 7 | . . . . . . . . . 7 . . Robots Built . | . . . . . . . . . . . . Authchips . | . . . . . . . . . . . . Time . | . . . . . . . . . . . . Total Robot Build Rating . | . . . . . . . . . . . . Part Schematics Acquired 16 | . . . 1 . 2 . . . 12 . 1 Parts Built 3 | . . . . . . 1 . . . . 2 Authchips . | . . . . . . . . . . . . Time 142 | . . . . . . 25 . . . . 117 Total Part Build Rating 15 | . . . . . . 1 . . . . 14 Parts Repaired 7 | . 1 . 2 . 4 . . . . . . Time 322 | . 26 . 168 . 128 . . . . . . Parts Recycled . | . . . . . . . . . . . . Recycled Matter . | . . . . . . . . . . . . Retrieved Matter . | . . . . . . . . . . . . Retrieved Components . | . . . . . . . . . . . . Parts Scanalyzed 1 | . . . 1 . . . . . . . . Part Schematics Acquired 1 | . . . 1 . . . . . . . . Parts Damaged 1 | . . . 1 . . . . . . . . Bothacking | -11 -10 -10 -9 -9 -8 -7 -7 -7 -7 -6 -6 ------------ Run | Scr Mat Min Mat Min Mat Fac Low Low Dat Pro Fac Used RIF Installer . | . . . . . . . . . . . . Robots Hacked . | . . . . . . . . . . . . Non-combat . | . . . . . . . . . . . . Combat . | . . . . . . . . . . . . Robot Hacks Applied . | . . . . . . . . . . . . Relay Couplers Released . | . . . . . . . . . . . . Fabnet Peak Effective % . | . . . . . . . . . . . . Robots Rewired . | . . . . . . . . . . . . Allies Hacked . | . . . . . . . . . . . . Hacks Repelled . | . . . . . . . . . . . . Allies | -11 -10 -10 -9 -9 -8 -7 -7 -7 -7 -6 -6 -------- Run | Scr Mat Min Mat Min Mat Fac Low Low Dat Pro Fac Total Allies 1 | . . . . . . . . . . 1 . Largest Group 1 | . . . . . . . . . . 1 . Highest-Rated Group 96 | . . . . . . . . . . 96 . Highest-Rated Ally 96 | . . . . . . . . . . 96 . Total Orders . | . . . . . . . . . . . . Ally Attacks 11 | . . . . . . . . . . 11 . Total Damage 358 | . . . . . . . . . . 358 . Kills 2 | . . . . . . . . . . 2 . Allies Corrupted . | . . . . . . . . . . . . Allies Melted . | . . . . . . . . . . . . Intel | -11 -10 -10 -9 -9 -8 -7 -7 -7 -7 -6 -6 ------- Run | Scr Mat Min Mat Min Mat Fac Low Low Dat Pro Fac Robot Analysis Total 2 | . 2 . . . . . . . . . . Derelict Logs Recovered 3 | . . . . 2 . . 1 . . . . Drone Launches . | . . . . . . . . . . . . Drone Recoveries . | . . . . . . . . . . . . Exploration | -11 -10 -10 -9 -9 -8 -7 -7 -7 -7 -6 -6 ------------- Run | Scr Mat Min Mat Min Mat Fac Low Low Dat Pro Fac Turns Passed 13509 | 123 1707 264 2984 1244 1645 906 710 825 124 964 2013 Spaces Moved 6797 | 65 796 135 1446 712 662 503 450 480 79 457 1012 Core 11 | 11 . . . . . . . . . . . Treads 6786 | 54 796 135 1446 712 662 503 450 480 79 457 1012 Legs . | . . . . . . . . . . . . Wheels . | . . . . . . . . . . . . Hover . | . . . . . . . . . . . . Flight . | . . . . . . . . . . . . Fastest Speed 50 | 50 160 160 160 160 156 157 157 157 157 157 157 Average Speed 158 | 144 160 160 160 160 158 157 157 157 157 157 158 Slowest Speed 160 | 160 160 160 160 160 160 157 157 157 157 157 160 Overloaded Moves . | . . . . . . . . . . . . Propulsion Burnouts . | . . . . . . . . . . . . Robots Hopped . | . . . . . . . . . . . . Cave-ins Triggered . | . . . . . . . . . . . . Exploration Rate (%) 51 | 4 94 21 79 99 49 11 57 63 69 57 17 Regions Visited 11 Branch Regions 6 Pre-discovered Areas 2 | . . . . 1 . . . . 1 . . Known Exits Taken 6 | . . . 1 . . 1 1 1 1 1 . Unknown Exits Taken 5 | 1 1 1 . 1 1 . . . . . . Scrap Searched 5 | . . 1 . 1 . . 2 1 . . . Spaces Dug 54 | . 3 . 10 . 2 8 . 26 . . 5 Terrain Destroyed 157 | . 3 . 10 . 13 8 . 46 . 71 6 Melee 10 | . . . . . 2 3 . 1 . . 4 Projectile 28 | . 3 . 10 . . 5 . 8 . . 2 AOE 119 | . . . . . 11 . . 37 . 71 . Terrain Rammed . | . . . . . . . . . . . . Walls Destroyed . | . . . . . . . . . . . . Machines Disabled . | . . . . . . . . . . . . Actions | -11 -10 -10 -9 -9 -8 -7 -7 -7 -7 -6 -6 --------- Run | Scr Mat Min Mat Min Mat Fac Low Low Dat Pro Fac Total 8584 | 81 1057 165 1894 759 1102 590 453 525 79 574 1305 Wait 853 | . 136 18 206 2 271 31 . 5 . 10 174 Move 6786 | 64 795 134 1445 711 661 502 449 479 78 456 1012 Hop . | . . . . . . . . . . . . Pick Up 83 | 5 6 1 26 4 11 7 2 3 . 8 10 Fast Attach 33 | 7 5 . 9 . 6 . . . . 4 2 Attach 16 | . 1 . 5 . 2 4 . . . . 4 Detach 8 | . . . 3 . . 1 . . . . 4 Swap 135 | . 11 . 26 1 28 14 2 7 1 12 33 Drop 109 | . 7 . 40 2 23 7 . 5 . 12 13 Fire 491 | 5 89 8 121 22 90 20 . 23 . 72 41 Melee 20 | . . . . . 5 3 . 3 . . 9 Ram . | . . . . . . . . . . . . Kick . | . . . . . . . . . . . . Crush 50 | . 7 4 13 17 5 1 . . . . 3 Escape Stasis . | . . . . . . . . . . . . Rewire . | . . . . . . . . . . . . Trap . | . . . . . . . . . . . . Miscellaneous . | . . . . . . . . . . . . Route ------- -11/Scrapyard -10/Materials (discovered 4 exits: *Mat x3 / [*Min]) -10/Mines -9/Materials (discovered 4 exits: *Mat x2 / *Min x2) -9/Mines (discovered 2 exits: *Mat x2) -8/Materials -7/Factory (discovered 4 exits: Sto x2 / *Low x2) -7/Lower Caves -7/Lower Caves -7/Data Miner -6/Proximity Caves -6/Factory (discovered 3 exits: *Fac / Low x2) History --------- Turn | Location | Event 6 | -11/Scrapyard | Discovered new exit (range 15) 124 | -11/Scrapyard | Entered Materials 194 | -10/Materials | Discovered new exit (range 16) 309 | -10/Materials | Build established: Mutant 394 | -10/Materials | Central database locked down 500 | -10/Materials | Discovered new exit (range 14) 774 | -10/Materials | Discovered new exit (range 5) 917 | -10/Materials | Repaired Lgt. Treads 994 | -10/Materials | Discovered new exit (range 9) 1077 | -10/Materials | Core integrity fell below 50% 1831 | -10/Materials | Entered Mines 1849 | -10/Mines | Met a Derelict bent on vengeance 1859 | -10/Mines | Discovered new exit (range 7) 2022 | -10/Mines | Found a damaged Exp. Sensor Array with a note attached 2025 | -10/Mines | Found Prototype Device 2095 | -10/Mines | Entered Materials 2095 | -9/Materials | Evolved 2 slots: Propulsion x1, Weapon x1 2273 | -9/Materials | Discovered new exit (range 7) 2402 | -9/Materials | Build established: Tank 2655 | -9/Materials | Identified Exp. Sensor Array 2732 | -9/Materials | Discovered new exit (range 12) 2776 | -9/Materials | Destroyed 7 combat bots 3065 | -9/Materials | Build established: Scavenger-Gunner 3786 | -9/Materials | Repaired Broken Exp. Sensor Array 3819 | -9/Materials | Repaired Imp. Treads 4124 | -9/Materials | Identified exit to Mines 4222 | -9/Materials | Discovered new exit (range 12) 4236 | -9/Materials | Build established: Tank 4681 | -9/Materials | Discovered new exit (range 9) 5079 | -9/Materials | Entered Mines 5217 | -9/Mines | Discovered new exit (range 9) 5262 | -9/Mines | Discovered new exit (range 4) 5335 | -9/Mines | Learned location of Storage (-7) 5377 | -9/Mines | Learned Materials terminal intel 6323 | -9/Mines | Entered Materials 6323 | -8/Materials | Evolved 2 slots: Propulsion x1, Utility x1 6324 | -8/Materials | Loaded intel: 12 terminal locations 6886 | -8/Materials | Discovered new exit (range 15) 7253 | -8/Materials | Repaired Imp. Treads 7287 | -8/Materials | Repaired Imp. Treads 7320 | -8/Materials | Repaired Imp. Treads 7354 | -8/Materials | Repaired Imp. Treads 7523 | -8/Materials | First assault squad dispatched 7968 | -8/Materials | Entered Factory 7968 | -7/Factory | Evolved 2 slots: Propulsion x1, Weapon x1 8013 | -7/Factory | Identified exit to Storage 8013 | -7/Factory | Identified exit to Lower Caves 8335 | -7/Factory | Fabricated Huge Storage Unit (x1) 8874 | -7/Factory | Entered Lower Caves 9165 | -7/Lower Caves | Build established: Skirmisher 9297 | -7/Lower Caves | Learned 4 Factory zone layouts 9421 | -7/Lower Caves | Discovered new exit (range 5) 9426 | -7/Lower Caves | Identified exit to Lower Caves 9584 | -7/Lower Caves | Entered another Lower Caves area 9881 | -7/Lower Caves | Encountered a Warlord checkpoint 9976 | -7/Lower Caves | Build established: Mutant 10058 | -7/Lower Caves | Discovered new exit (range 15) 10077 | -7/Lower Caves | Identified exit to Data Miner 10409 | -7/Lower Caves | Entered Data Miner 10409 | -7/Data Miner | Discovered new exit (range 6) 10439 | -7/Data Miner | Met Data Miner 10469 | -7/Data Miner | Learned location of Section 7 (-3) 10469 | -7/Data Miner | Acquired the access code to Warlord's prototype stash 10494 | -7/Data Miner | Received God Mode back door access code from Data Miner 10529 | -7/Data Miner | Identified exit to Proximity Caves 10533 | -7/Data Miner | Entered Proximity Caves 10649 | -6/Proximity Caves | Build established: Skirmisher 10683 | -6/Proximity Caves | Escorted by Enhanced Grunt 11193 | -6/Proximity Caves | Discovered new exit (range 10) 11210 | -6/Proximity Caves | Identified exit to Factory 11446 | -6/Proximity Caves | Found Prototype Device 11446 | -6/Proximity Caves | Identified Exp. Thermal Shield 11497 | -6/Proximity Caves | Entered Factory 11497 | -6/Factory | Evolved 2 slots: Propulsion x1, Utility x1 11808 | -6/Factory | Discovered new exit (range 6) 11815 | -6/Factory | Identified exit to Factory 11822 | -6/Factory | Identified exit to Lower Caves 12058 | -6/Factory | Garrison activated, responded to threat 12625 | -6/Factory | Fabricated Imp. Heavy Treads (x2) 12928 | -6/Factory | Build established: Mutant 13510 | -6/Factory | Self-destructed Last Messages --------------- 13313_ Med. Storage Unit fried. 13316_ Acquired 131 matter. 13317_ R-10 Processor collects Imp. Heat Sink. 13320_ Sneak attack on R-10 Processor. 13320_ R-10 Processor destroyed. 13320_ R-10 Processor collects Targeting Computer. 13322_ Acquired 128 matter. 13323_ R-10 Processor collects Com. Wheel. 13324_ Sneak attack on R-10 Processor. 13324_ Destroyed Com. Wheel. 13324_ R-10 Processor system corrupted by crushing effect. 13324_ R-10 Processor system corrupted by crushing effect. 13325_ R-10 Processor system terminally corrupted. 13327_ Acquired 122 matter. 13364_ ALERT: Cargo convoy en route, clear transfer corridor. 13506_ Sneak attack on R-10 Processor. 13506_ R-10 Processor destroyed. 13509_ Acquired 58 matter. Map ----- +----------------------------------------------------+ | ??????????????????? | | ??????????????????? | | ??????????????????? | | ##+##### ##################??????????????????? | | ## #????????????# ??????????????????? | | """" ## #????????????# ??????????????????? | | """" ## #????????????# ""??????????????????? | | """" # #????????????# ""??????????????????? | | """" #T ############## ""??????????????????? | | ?????????????????????????????????????????????????? | | ?????????? ????????????????????????????????????? | | ???????? ????????????????????????????????????? | | ???????# ????????????????????????????????????? | | ???????# ????????????????????????????????????? | | ??????? k????????????????????????????????????? | | ???????# ????????????????????????????????????? | | ???????# ????????????????????????????????????? | | ?????#?# #???????????????????????????????????? | | ?????? # #???????????????????????????????????? | | ?????? # #???????????????????????????????????? | | ???????+ #???????????????????????????????????? | | ?""""??# #???????#####################???????? | | ?""""??# #???????# g gg ?>????? | | ?""""??# #???????# ==! #?????????????? | | ?""""??# ######### =]!! #?????????????? | | ?""""??# !]@=* #?????????????? | | ?""""??# #####################+#?????????????? | | ???????# #???????????????????????????????????? | | ???????# m #???????????????????????????????????? | | ???????# #???????????????????????????????????? | | ???????# #???????????????????????????????????? | | ???????# #???????????????????????????????????? | | ???????# #????????????????????????"Y"????????? | | ???????# #????????????????????????"""????????? | | ####???# +???????????????????????????????????? | | ! #???# #???????????????????????????????????? | | #???# #???????????????????????????????????? | | #???# #??????????????????????????o????????? | | #???# #???????????????????????????????????? | | !#???# #???????????????????????????????????? | | #???# #??????????????"""??????????????????? | | #???# ##############?"""??????????????????? | | #???# # #?"S???????????????????? | | * #???# # #?"""???""?????????????? | | != #???# # #??""???""?????????????? | | !! ##### # #???????"""????????????? | | ####T ## # #???????"""????????????? | | # #???????"""????????????? | | + #??????????????????????? | | # #??????????????????????? | +----------------------------------------------------+ Best States ------------- Heat Dissipation 56 Energy Generation 21 Energy Capacity 825 Matter Stores 300 Matter Capacity 300 Sight Range 16 Robot Scan Range 20 Terrain Scan Range 16 Terrain Scan Density 10 Armor Coverage 225 Resistance: TH 30 Evasion (%) 40 Recoil Reduction 6 Offensive Hacking 10 Defensive Hacking 10 Item Schematics ----------------- Exp. Sensor Array | -9/Materials | Scanalyzed Huge Storage Unit | -8/Materials | Hacked Cargo Storage Unit | -8/Materials | Hacked Combat Drone Bay | -7/Data Miner | Free Lgt. Regenerative Plating | -7/Data Miner | Free Cld. Aerolev Unit | -7/Data Miner | Free Gravity Neutralizer | -7/Data Miner | Free Com. Ion Cannon | -7/Data Miner | Free Antigrav System | -7/Data Miner | Free Adv. Cooling System | -7/Data Miner | Free Variable Charge Gun | -7/Data Miner | Free Focal Shield | -7/Data Miner | Free Lrn. Proton Cannon | -7/Data Miner | Free Adv. Plasma Cannon | -7/Data Miner | Free Imp. Heavy Treads | -7/Data Miner | Free Armor Integrity Analyzer | -6/Factory | Hacked Robot Schematics ------------------ R-10 Processor | -7/Data Miner | Free M-22 Extractor | -7/Data Miner | Free X-57 Shotgunner | -7/Data Miner | Free Y-54 Guardian | -7/Data Miner | Free B-60 Warrior | -7/Data Miner | Free G-50 Soldier | -7/Data Miner | Free A-15 Conveyor | -7/Data Miner | Free Fabricated ------------ Huge Storage Unit | x1 | -7/Factory Imp. Heavy Treads | x2 | -6/Factory Alien Tech Used ----------------- None Achievements -------------- None Challenges ------------ None Game ------ Seed SwarmIonProtomatter Manual? 0 Play Time 01:29:52 Cumulative 337.8 hours Start 2022.02.10 @ 10:40:11 End 2022.02.10 @ 12:29:11 Sessions 3 Manual Loads 0 Difficulty Rogue Special Mode None Game No. 142 Rogue 142 Adventurer 0 Explorer 0 Win Type - Total 6 Types 1/2/1/0/0/2/0/0/0 Lore% 60 Gallery% 62 Achievement% 59 Wizard Run 0 Options --------- ASCII 0 Keyboard 1 Movement Vi Keybinds 0 Fullscreen 2 Font 12/Smallcaps Map View 60x54 Tactical HUD 1 Map Filters NONE Filters NONE Steam 1 RUN: 3673a065-64df-4acb-8682-0bb47e194dce